[Event "55th Rubinstein Memorial-A 2019"]
[Site "Polanica-Zdroj"]
[Date "2019.08.24"]
[Round "8.8"]
[White "Luba, Lukasz"]
[Black "Mikhaletz, Lubomir"]
[Result "1/2-1/2"]
[ECO "D02"]
[WhiteElo "2130"]
[BlackElo "2412"]
[Annotator "NA"]
[PlyCount "167"]
[EventDate "2019.08.17"]
[EventType "swiss"]
[EventCountry "POL"]
[SourceTitle "playchess.com"]
[Source "ChessBase"]
[SourceQuality "1"]
[TimeControl "40/5400+30:1800+30"]

1. d4 {[%emt 0:09:03]} d5 {[%emt 0:00:47]} 2. Nf3 {[%emt 0:01:16]} Bg4 {[%emt 0:02:56]} 3. Ne5 {[%emt 0:04:32]} Bf5 {[%emt 0:00:42]} 4. c4 {[%emt 0:02:31]} f6 {[%emt 0:05:28]} 5. Nf3 {[%emt 0:03:17]} c6 {[%emt 0:04:47]} 6. Nc3 {[%emt 0:02:04]} e6 {[%emt 0:01:38]} 7. Bf4 {[%emt 0:08:55]} Qb6 {[%emt 0:04:27]} 8. Qb3 {[%emt 0:03:40]} dxc4 {[%emt 0:01:55]} 9. Qxb6 {[%emt 0:01:14]} axb6 {[%emt 0:00:02]} 10. e4 {[%emt 0:00:50]} Bg6 {[%emt 0:00:35]} 11. Bxc4 {[%emt 0:02:51]} b5 {[%emt 0:00:07]} 12. Bxe6 {[%emt 0:03:48]} b4 {[%emt 0:00:19]} 13. Nb1 {[%emt 0:01:58]} Bxe4 {[%emt 0:00:41]} 14. O-O {[%emt 0:00:16]} Bd5 {[%emt 0:02:22]} 15. Bxd5 {[%emt 0:00:43]} cxd5 {[%emt 0:00:10]} 16. Re1+ {[%emt 0:01:36]} Kd7 {[%emt 0:00:27]} 17. Nbd2 {[%emt 0:03:16]} Nc6 {[%emt 0:00:16]} 18. Nb3 {[%emt 0:00:14]} g5 {[%emt 0:01:03]} 19. Be3 {[%emt 0:02:51]} b6 {[%emt 0:00:17]} 20. h4 {[%emt 0:00:40]} h6 {[%emt 0:00:40]} 21. g3 {[%emt 0:03:17]} Bd6 {[%emt 0:01:08]} 22. Kg2 {[%emt 0:01:21]} Nge7 {[%emt 0:02:08]} 23. hxg5 {[%emt 0:06:17]} hxg5 {[%emt 0:05:44]} 24. Nh2 {[%emt 0:01:28]} Nf5 {[%emt 0:03:44]} 25. Ng4 {[%emt 0:00:23]} Be7 {[%emt 0:00:07]} 26. f3 {[%emt 0:02:00]} Na5 {[%emt 0:04:07]} 27. Nxa5 {[%emt 0:02:23]} Rxa5 {[%emt 0:04:50]} 28. b3 {[%emt 0:01:14]} Rha8 {[%emt 0:01:21]} 29. Re2 {[%emt 0:01:20]} Ra3 {[%emt 0:01:30]} 30. Rb2 {[%emt 0:00:43]} Ke6 {[%emt 0:13:36]} 31. Bf2 {[%emt 0:03:49]} Kf7 {[%emt 0:02:33]} 32. Ne3 {[%emt 0:03:57]} Nxd4 {[%emt 0:05:03]} 33. Nxd5 {[%emt 0:00:09]} Bc5 {[%emt 0:00:12]} 34. Nxb4 {[%emt 0:06:32]} Nxb3 {[%emt 0:07:05]} 35. Rd1 {[%emt 0:03:58]} Bxb4 {[%emt 0:00:46]} 36. axb3 {[%emt 0:01:38]} Bc3 {[%emt 0:05:50]} 37. Rc2 {[%emt 0:00:48]} Be5 {[%emt 0:00:50]} 38. Rd3 {[%emt 0:03:36]} Ra2 {[%emt 0:01:58]} 39. Rdd2 {[%emt 0:00:11]} R2a3 {[%emt 0:02:53]} 40. Bxb6 {[%emt 0:00:00]} Rxb3 {[%emt 0:00:00]} 41. Bd4 {[%emt 0:01:42]} g4 {[%emt 0:02:45]} 42. f4 {[%emt 0:09:45]} Bxd4 {[%emt 0:00:15]} 43. Rxd4 {[%emt 0:00:05]} Kg6 {[%emt 0:03:27]} 44. Kh2 {[%emt 0:01:41]} Rh8+ {[%emt 0:05:08]} 45. Kg2 {[%emt 0:00:07]} Re8 {[%emt 0:00:18]} 46. f5+ {[%emt 0:11:14]} Kh5 {[%emt 0:00:50]} 47. Rd7 {[%emt 0:06:21]} Ree3 {[%emt 0:01:17]} 48. Rg7 {[%emt 0:00:17]} Rxg3+ {[%emt 0:00:38]} 49. Kh2 {[%emt 0:00:03]} Rgc3 {[%emt 0:07:36]} 50. Re2 {[%emt 0:03:54]} Rh3+ {[%emt 0:03:10]} 51. Kg2 {[%emt 0:00:10]} Kh4 {[%emt 0:02:53]} 52. Re4 {[%emt 0:05:32]} Rhg3+ {[%emt 0:02:34]} 53. Kh2 {[%emt 0:00:09]} Rb2+ {[%emt 0:00:33]} 54. Kh1 {[%emt 0:00:05]} Rbg2 {[%emt 0:04:45]} 55. Re2 {[%emt 0:00:24]} Rxe2 {[%emt 0:03:45]} 56. Rxg4+ {[%emt 0:00:04]} Kh5 {[%emt 0:00:44]} 57. Rxg3 {[%emt 0:00:04]} Rf2 {[%emt 0:00:11]} 58. Kg1 {[%emt 0:01:10]} Rxf5 {[%emt 0:00:08]} 59. Ra3 {[%emt 0:00:05]} Kg4 {[%emt 0:01:23]} 60. Kg2 {[%emt 0:00:22]} Rf4 {[%emt 0:00:03]} 61. Rg3+ {[%emt 0:01:13]} Kf5 {[%emt 0:00:01]} 62. Ra3 {[%emt 0:00:11]} Rc4 {[%emt 0:03:06]} 63. Rf3+ {[%emt 0:00:23]} Ke5 {[%emt 0:00:07]} 64. Re3+ {[%emt 0:00:05]} Kf5 {[%emt 0:02:29]} 65. Kf3 {[%emt 0:00:59]} Rf4+ {[%emt 0:00:07]} 66. Kg3 {[%emt 0:00:06]} Re4 {[%emt 0:00:18]} 67. Ra3 {[%emt 0:00:22]} Kg5 {[%emt 0:00:38]} 68. Kf3 {[%emt 0:00:27]} Re5 {[%emt 0:00:04]} 69. Rb3 {[%emt 0:00:56]} Ra5 {[%emt 0:00:27]} 70. Rc3 {[%emt 0:00:09]} f5 {[%emt 0:00:09]} 71. Rb3 {[%emt 0:00:07]} Ra4 {[%emt 0:00:06]} 72. Kg3 {[%emt 0:00:47]} Rg4+ {[%emt 0:00:14]} 73. Kf3 {[%emt 0:00:37]} Rh4 {[%emt 0:00:07]} 74. Kg3 {[%emt 0:00:16]} f4+ {[%emt 0:01:10]} 75. Kg2 {[%emt 0:00:05]} Kg4 {[%emt 0:00:49]} 76. Rb8 {[%emt 0:00:27]} f3+ {[%emt 0:00:38]} 77. Kf2 {[%emt 0:00:58]} Rh2+ {[%emt 0:00:08]} 78. Kf1 {[%emt 0:00:05]} Rh5 {[%emt 0:00:51]} 79. Kf2 {[%emt 0:00:05]} Rh2+ {[%emt 0:00:30]} 80. Kf1 {[%emt 0:00:05]} Re2 {[%emt 0:01:17]} 81. Rg8+ {[%emt 0:00:09]} Kf4 {[%emt 0:00:10]} 82. Rf8+ {[%emt 0:00:05]} Ke3 {[%emt 0:00:05]} 83. Re8+ {[%emt 0:00:07]} Kd2 {[%emt 0:00:08]} 84. Rd8+ {[%emt 0:00:06]} 1/2-1/2

[Event "55th Rubinstein Memorial-A 2019"]
[Site "Polanica-Zdroj"]
[Date "2019.08.24"]
[Round "8.9"]
[White "Shishkin, Vadim"]
[Black "Jankowiak, Piotr"]
[Result "1-0"]
[ECO "D37"]
[WhiteElo "2445"]
[BlackElo "2033"]
[Annotator "NA"]
[PlyCount "59"]
[EventDate "2019.08.17"]
[EventType "swiss"]
[EventCountry "POL"]
[SourceTitle "playchess.com"]
[Source "ChessBase"]
[SourceQuality "1"]
[TimeControl "40/5400+30:1800+30"]

1. d4 {[%emt 0:00:00]} d5 {[%emt 0:00:00]} 2. c4 {[%emt 0:00:00]} e6 {[%emt 0:00:00]} 3. Nf3 {[%emt 0:00:26]} Nf6 {[%emt 0:00:11]} 4. Nc3 {[%emt 0:00:07]} Be7 {[%emt 0:00:21]} 5. Bf4 {[%emt 0:00:05]} O-O {[%emt 0:00:31]} 6. e3 {[%emt 0:00:08]} b6 {[%emt 0:00:32]} 7. Qc2 {[%emt 0:01:24]} c6 {[%emt 0:09:22]} 8. Rd1 {[%emt 0:02:20]} Bb7 {[%emt 0:07:16]} 9. Bd3 {[%emt 0:15:41]} Nbd7 {[%emt 0:04:08]} 10. O-O {[%emt 0:01:11]} h6 {[%emt 0:07:48]} 11. h3 {[%emt 0:02:57]} Rc8 {[%emt 0:06:02]} 12. e4 {[%emt 0:16:56]} dxe4 {[%emt 0:04:29]} 13. Nxe4 {[%emt 0:02:47]} Nxe4 {[%emt 0:00:45]} 14. Bxe4 {[%emt 0:00:04]} Nf6 {[%emt 0:00:44]} 15. Ne5 {[%emt 0:00:09]} Bd6 {[%emt 0:18:48]} 16. Bf3 {[%emt 0:02:53]} Qe7 {[%emt 0:08:15]} 17. Rfe1 {[%emt 0:10:33]} Rfd8 {[%emt 0:04:45]} 18. Bg3 {[%emt 0:03:46]} Ba8 {[%emt 0:04:26]} 19. Bh4 {[%emt 0:05:47]} g5 {[%emt 0:05:23]} 20. Bg3 {[%emt 0:00:03]} Kg7 {[%emt 0:00:19]} 21. a3 {[%emt 0:01:47]} a5 {[%emt 0:09:53]} 22. Qc3 {[%emt 0:04:32]} Rh8 {[%emt 0:01:33]} 23. c5 {[%emt 0:09:33]} bxc5 {[%emt 0:01:14]} 24. dxc5 {[%emt 0:00:16]} Bc7 {[%emt 0:02:10]} 25. b4 {[%emt 0:07:53]} axb4 {[%emt 0:00:16]} 26. axb4 {[%emt 0:00:01]} Bb8 {[%emt 0:02:26]} 27. Nc4 {[%emt 0:02:34]} Bxg3 {[%emt 0:00:15]} 28. fxg3 {[%emt 0:00:03]} Bb7 {[%emt 0:01:05]} 29. Nd6 {[%emt 0:00:05]} Ba6 {[%emt 0:00:59]} 30. Nf5+ {[%emt 0:00:16]} 1-0

[Event "55th Rubinstein Memorial-A 2019"]
[Site "Polanica-Zdroj"]
[Date "2019.08.24"]
[Round "8.10"]
[White "Rosicki, Marcin"]
[Black "Jaroch, Karol"]
[Result "0-1"]
[ECO "C02"]
[WhiteElo "2042"]
[BlackElo "2231"]
[Annotator "NA"]
[PlyCount "58"]
[EventDate "2019.08.17"]
[EventType "swiss"]
[EventCountry "POL"]
[SourceTitle "playchess.com"]
[Source "ChessBase"]
[SourceQuality "1"]
[TimeControl "40/5400+30:1800+30"]

1. e4 {[%emt 0:03:09]} e6 {[%emt 0:00:33]} 2. d4 {[%emt 0:00:07]} d5 {[%emt 0:00:03]} 3. e5 {[%emt 0:00:05]} c5 {[%emt 0:00:05]} 4. c3 {[%emt 0:00:04]} Nc6 {[%emt 0:00:03]} 5. Nf3 {[%emt 0:00:04]} Qb6 {[%emt 0:00:07]} 6. a3 {[%emt 0:00:05]} c4 {[%emt 0:00:53]} 7. Nbd2 {[%emt 0:00:05]} Na5 {[%emt 0:00:09]} 8. g3 {[%emt 0:00:12]} Bd7 {[%emt 0:00:14]} 9. Bg2 {[%emt 0:00:06]} Ne7 {[%emt 0:00:36]} 10. O-O {[%emt 0:00:07]} Nc8 {[%emt 0:04:59]} 11. Ne1 {[%emt 0:02:24]} Qc7 {[%emt 0:00:34]} 12. f4 {[%emt 0:00:12]} Nb6 {[%emt 0:00:11]} 13. Ndf3 {[%emt 0:04:22]} Be7 {[%emt 0:12:06]} 14. Qe2 {[%emt 0:07:13]} O-O-O {[%emt 0:03:43]} 15. Nc2 {[%emt 0:14:40]} Nb3 {[%emt 0:05:37]} 16. Rb1 {[%emt 0:05:36]} Nxc1 {[%emt 0:00:17]} 17. Rfxc1 {[%emt 0:00:30]} h6 {[%emt 0:00:08]} 18. Ne3 {[%emt 0:15:41]} Kb8 {[%emt 0:04:44]} 19. Rf1 {[%emt 0:03:07]} Rde8 {[%emt 0:18:16]} 20. f5 {[%emt 0:17:09]} h5 {[%emt 0:05:38]} 21. fxe6 {[%emt 0:05:35]} Bxe6 {[%emt 0:00:30]} 22. Nd2 {[%emt 0:06:14]} h4 {[%emt 0:00:23]} 23. g4 {[%emt 0:00:06]} h3 {[%emt 0:00:19]} 24. Bh1 {[%emt 0:00:16]} f6 {[%emt 0:02:10]} 25. Nf5 {[%emt 0:03:17]} Bxf5 {[%emt 0:00:24]} 26. Rxf5 {[%emt 0:00:32]} g6 {[%emt 0:00:08]} 27. Rf3 {[%emt 0:06:01]} fxe5 {[%emt 0:00:09]} 28. Qf1 {[%emt 0:00:09]} exd4 {[%emt 0:02:06]} 29. cxd4 {[%emt 0:00:11]} Bg5 {[%emt 0:00:41]} 0-1

[Event "55th Rubinstein Memorial-A 2019"]
[Site "Polanica-Zdroj"]
[Date "2019.08.24"]
[Round "8.11"]
[White "Derylo, Kamil"]
[Black "Lukasiewicz, Krzysztof"]
[Result "1/2-1/2"]
[ECO "E04"]
[WhiteElo "2030"]
[BlackElo "2185"]
[Annotator "NA"]
[PlyCount "129"]
[EventDate "2019.08.17"]
[EventType "swiss"]
[EventCountry "POL"]
[SourceTitle "playchess.com"]
[Source "ChessBase"]
[SourceQuality "1"]
[TimeControl "40/5400+30:1800+30"]

1. d4 {[%emt 0:00:00]} Nf6 {[%emt 0:00:00]} 2. c4 {[%emt 0:00:00]} e6 {[%emt 0:00:00]} 3. g3 {[%emt 0:00:01]} d5 {[%emt 0:00:00]} 4. Nf3 {[%emt 0:00:09]} dxc4 {[%emt 0:00:00]} 5. Bg2 {[%emt 0:00:19]} a6 {[%emt 0:00:00]} 6. O-O {[%emt 0:00:36]} Nc6 {[%emt 0:00:00]} 7. e3 {[%emt 0:00:45]} Bd7 {[%emt 0:01:22]} 8. Qe2 {[%emt 0:00:38]} Rb8 {[%emt 0:02:20]} 9. Qxc4 {[%emt 0:07:25]} Bd6 {[%emt 0:06:34]} 10. Nbd2 {[%emt 0:00:43]} O-O {[%emt 0:02:04]} 11. b3 {[%emt 0:00:19]} e5 {[%emt 0:01:48]} 12. Bb2 {[%emt 0:02:17]} Qe7 {[%emt 0:02:10]} 13. Rfd1 {[%emt 0:02:26]} Rfd8 {[%emt 0:15:18]} 14. dxe5 {[%emt 0:09:07]} Nxe5 {[%emt 0:00:08]} 15. Nxe5 {[%emt 0:00:15]} Bxe5 {[%emt 0:00:04]} 16. Bxe5 {[%emt 0:00:14]} Qxe5 {[%emt 0:00:01]} 17. Nf3 {[%emt 0:00:24]} Qa5 {[%emt 0:00:49]} 18. b4 {[%emt 0:03:49]} Qb6 {[%emt 0:06:10]} 19. Ng5 {[%emt 0:08:23]} Be8 {[%emt 0:04:20]} 20. Rac1 {[%emt 0:11:59]} c6 {[%emt 0:07:45]} 21. a4 {[%emt 0:06:11]} h6 {[%emt 0:04:56]} 22. a5 {[%emt 0:02:31]} Qc7 {[%emt 0:02:31]} 23. Ne4 {[%emt 0:02:51]} Nxe4 {[%emt 0:04:28]} 24. Bxe4 {[%emt 0:00:15]} Bd7 {[%emt 0:00:53]} 25. Bf3 {[%emt 0:01:15]} Be6 {[%emt 0:00:29]} 26. Qc3 {[%emt 0:01:38]} Qe7 {[%emt 0:03:06]} 27. Kg2 {[%emt 0:03:57]} Qg5 {[%emt 0:00:32]} 28. e4 {[%emt 0:09:01]} Rbc8 {[%emt 0:06:03]} 29. h4 {[%emt 0:03:27]} Qe7 {[%emt 0:00:19]} 30. Rxd8+ {[%emt 0:02:39]} Rxd8 {[%emt 0:00:04]} 31. Rd1 {[%emt 0:00:20]} Rxd1 {[%emt 0:02:33]} 32. Bxd1 {[%emt 0:00:13]} Qd7 {[%emt 0:00:40]} 33. Be2 {[%emt 0:01:45]} Qd6 {[%emt 0:00:49]} 34. Bf3 {[%emt 0:03:35]} Kh7 {[%emt 0:03:40]} 35. e5 {[%emt 0:01:29]} Qd7 {[%emt 0:00:09]} 36. Be4+ {[%emt 0:01:31]} Bf5 {[%emt 0:00:09]} 37. Bxf5+ {[%emt 0:01:31]} Qxf5 {[%emt 0:00:04]} 38. Qd4 {[%emt 0:00:22]} Qe6 {[%emt 0:12:45]} 39. Qd3+ {[%emt 0:01:17]} g6 {[%emt 0:01:42]} 40. Qd4 {[%emt 0:00:00]} Qf5 {[%emt 0:00:00]} 41. g4 {[%emt 0:09:01]} Qe6 {[%emt 0:07:04]} 42. Kg3 {[%emt 0:02:11]} Qb3+ {[%emt 0:04:59]} 43. Kg2 {[%emt 0:01:12]} Qb1 {[%emt 0:01:25]} 44. e6 {[%emt 0:04:41]} fxe6 {[%emt 0:07:13]} 45. Qd7+ {[%emt 0:00:50]} Kh8 {[%emt 0:00:11]} 46. Qe8+ {[%emt 0:00:21]} Kg7 {[%emt 0:00:05]} 47. Qe7+ {[%emt 0:00:04]} Kh8 {[%emt 0:00:09]} 48. Qf8+ {[%emt 0:02:11]} Kh7 {[%emt 0:00:06]} 49. Qf7+ {[%emt 0:00:02]} Kh8 {[%emt 0:00:05]} 50. Qxe6 {[%emt 0:00:26]} Qxb4 {[%emt 0:02:58]} 51. Qxg6 {[%emt 0:00:54]} Qf4 {[%emt 0:00:55]} 52. Qe8+ {[%emt 0:02:47]} Kg7 {[%emt 0:00:34]} 53. Qd7+ {[%emt 0:00:38]} Kf6 {[%emt 0:01:23]} 54. f3 {[%emt 0:02:32]} Qe5 {[%emt 0:01:29]} 55. Qd8+ {[%emt 0:02:28]} Kg7 {[%emt 0:00:16]} 56. Qd7+ {[%emt 0:01:03]} Kf6 {[%emt 0:00:05]} 57. Qd2 {[%emt 0:00:49]} Kg6 {[%emt 0:05:08]} 58. f4 {[%emt 0:01:28]} Qe4+ {[%emt 0:02:46]} 59. Kg3 {[%emt 0:00:47]} Qe7 {[%emt 0:02:50]} 60. f5+ {[%emt 0:01:26]} Kf7 {[%emt 0:01:39]} 61. Qa2+ {[%emt 0:02:11]} Kf8 {[%emt 0:01:42]} 62. Qd2 {[%emt 0:00:48]} Kf7 {[%emt 0:00:19]} 63. Kh3 {[%emt 0:02:57]} Qa3+ {[%emt 0:00:48]} 64. Kg2 {[%emt 0:00:10]} Qe7 {[%emt 0:00:04]} 65. Qf2 {[%emt 0:05:50]} 1/2-1/2

[Event "55th Rubinstein Memorial-A 2019"]
[Site "Polanica-Zdroj"]
[Date "2019.08.24"]
[Round "8.12"]
[White "Goslawski, Michal"]
[Black "Mazalon, Mariusz"]
[Result "1-0"]
[ECO "A05"]
[WhiteElo "2160"]
[BlackElo "2012"]
[Annotator "NA"]
[PlyCount "103"]
[EventDate "2019.08.17"]
[EventType "swiss"]
[EventCountry "POL"]
[SourceTitle "playchess.com"]
[Source "ChessBase"]
[SourceQuality "1"]
[TimeControl "40/5400+30:1800+30"]

1. Nf3 {[%emt 0:00:00]} Nf6 {[%emt 0:00:00]} 2. c4 {[%emt 0:00:10]} g6 {[%emt 0:00:16]} 3. g3 {[%emt 0:00:04]} Bg7 {[%emt 0:00:28]} 4. Bg2 {[%emt 0:00:05]} O-O {[%emt 0:00:07]} 5. O-O {[%emt 0:00:06]} d6 {[%emt 0:00:14]} 6. d4 {[%emt 0:00:05]} c6 {[%emt 0:00:56]} 7. Nc3 {[%emt 0:00:07]} a6 {[%emt 0:00:14]} 8. e4 {[%emt 0:00:13]} Bg4 {[%emt 0:01:03]} 9. h3 {[%emt 0:07:52]} Bxf3 {[%emt 0:03:24]} 10. Bxf3 {[%emt 0:03:10]} Nbd7 {[%emt 0:02:13]} 11. Kg2 {[%emt 0:03:49]} b5 {[%emt 0:03:19]} 12. Qe2 {[%emt 0:01:35]} e5 {[%emt 0:05:28]} 13. d5 {[%emt 0:00:43]} cxd5 {[%emt 0:06:25]} 14. cxd5 {[%emt 0:00:42]} b4 {[%emt 0:06:53]} 15. Na4 {[%emt 0:00:52]} Qa5 {[%emt 0:08:08]} 16. b3 {[%emt 0:10:51]} Nxd5 {[%emt 0:08:58]} 17. Rd1 {[%emt 0:00:07]} Nc3 {[%emt 0:07:03]} 18. Nxc3 {[%emt 0:00:17]} bxc3 {[%emt 0:00:02]} 19. Rxd6 {[%emt 0:01:03]} Nc5 {[%emt 0:02:17]} 20. Qc4 {[%emt 0:01:42]} Nb7 {[%emt 0:12:55]} 21. Rc6 {[%emt 0:04:30]} Rfd8 {[%emt 0:07:34]} 22. Qxc3 {[%emt 0:00:34]} Qxc3 {[%emt 0:00:22]} 23. Rxc3 {[%emt 0:00:13]} Nd6 {[%emt 0:00:03]} 24. Bg5 {[%emt 0:05:24]} f6 {[%emt 0:00:42]} 25. Be3 {[%emt 0:00:50]} f5 {[%emt 0:00:05]} 26. Rac1 {[%emt 0:03:45]} fxe4 {[%emt 0:00:45]} 27. Be2 {[%emt 0:00:32]} Nf5 {[%emt 0:01:34]} 28. Bg5 {[%emt 0:07:21]} Re8 {[%emt 0:03:15]} 29. Bc4+ {[%emt 0:00:32]} Kh8 {[%emt 0:00:20]} 30. Bd5 {[%emt 0:00:38]} Rab8 {[%emt 0:00:23]} 31. Bxe4 {[%emt 0:01:00]} Nd4 {[%emt 0:00:46]} 32. Rc4 {[%emt 0:00:19]} h6 {[%emt 0:00:17]} 33. Be3 {[%emt 0:00:11]} g5 {[%emt 0:00:04]} 34. Bxd4 {[%emt 0:01:17]} exd4 {[%emt 0:00:06]} 35. Bd3 {[%emt 0:00:28]} a5 {[%emt 0:01:11]} 36. R1c2 {[%emt 0:06:07]} Bf6 {[%emt 0:00:41]} 37. Rc6 {[%emt 0:01:08]} Kg7 {[%emt 0:00:31]} 38. Ra6 {[%emt 0:00:11]} Rbc8 {[%emt 0:02:02]} 39. Ra7+ {[%emt 0:00:09]} Kf8 {[%emt 0:00:08]} 40. Rxc8 {[%emt 0:04:35]} Rxc8 {[%emt 0:00:06]} 41. Bc4 {[%emt 0:00:14]} Rc6 {[%emt 0:05:03]} 42. Rxa5 {[%emt 0:00:37]} Ke7 {[%emt 0:00:15]} 43. Kf3 {[%emt 0:00:30]} h5 {[%emt 0:00:40]} 44. Ke4 {[%emt 0:00:36]} h4 {[%emt 0:00:18]} 45. gxh4 {[%emt 0:00:33]} gxh4 {[%emt 0:00:04]} 46. Ra7+ {[%emt 0:00:46]} Kd6 {[%emt 0:00:41]} 47. f4 {[%emt 0:01:23]} Kc5 {[%emt 0:00:15]} 48. a3 {[%emt 0:00:47]} Bd8 {[%emt 0:02:19]} 49. Rd7 {[%emt 0:01:08]} Bc7 {[%emt 0:00:19]} 50. Rd5+ {[%emt 0:00:31]} Kb6 {[%emt 0:00:08]} 51. Rxd4 {[%emt 0:00:42]} Rf6 {[%emt 0:00:09]} 52. f5 {[%emt 0:00:26]} 1-0

[Event "55th Rubinstein Memorial-A 2019"]
[Site "Polanica-Zdroj"]
[Date "2019.08.24"]
[Round "8.13"]
[White "Skurniak, Szymon"]
[Black "Wisniewski, Michal"]
[Result "1/2-1/2"]
[ECO "B01"]
[WhiteElo "1962"]
[BlackElo "2130"]
[Annotator "NA"]
[PlyCount "148"]
[EventDate "2019.08.17"]
[EventType "swiss"]
[EventCountry "POL"]
[SourceTitle "playchess.com"]
[Source "ChessBase"]
[SourceQuality "1"]
[TimeControl "40/5400+30:1800+30"]

1. e4 {[%emt 0:00:00]} d5 {[%emt 0:01:37]} 2. exd5 {[%emt 0:00:00]} Qxd5 {[%emt 0:00:05]} 3. Nc3 {[%emt 0:00:07]} Qa5 {[%emt 0:00:04]} 4. d4 {[%emt 0:00:08]} Nf6 {[%emt 0:00:05]} 5. Bc4 {[%emt 0:00:32]} c6 {[%emt 0:08:22]} 6. Nf3 {[%emt 0:01:22]} Bf5 {[%emt 0:02:01]} 7. Bd2 {[%emt 0:00:58]} Qc7 {[%emt 0:00:30]} 8. Ne5 {[%emt 0:06:35]} e6 {[%emt 0:00:26]} 9. g4 {[%emt 0:01:32]} Be4 {[%emt 0:03:00]} 10. Nxe4 {[%emt 0:12:27]} Nxe4 {[%emt 0:01:12]} 11. Bf4 {[%emt 0:05:17]} Nd7 {[%emt 0:07:15]} 12. Qe2 {[%emt 0:21:01]} Nxe5 {[%emt 0:03:33]} 13. Bxe5 {[%emt 0:07:58]} Qa5+ {[%emt 0:01:52]} 14. Kf1 {[%emt 0:00:20]} Nd2+ {[%emt 0:00:26]} 15. Kg2 {[%emt 0:00:39]} Nxc4 {[%emt 0:00:05]} 16. Qxc4 {[%emt 0:00:06]} Qd5+ {[%emt 0:00:03]} 17. Qxd5 {[%emt 0:00:09]} cxd5 {[%emt 0:00:04]} 18. Rhe1 {[%emt 0:03:42]} Rc8 {[%emt 0:00:05]} 19. h3 {[%emt 0:06:06]} Kd7 {[%emt 0:16:13]} 20. c3 {[%emt 0:02:40]} Rg8 {[%emt 0:00:19]} 21. a4 {[%emt 0:01:34]} Bd6 {[%emt 0:01:42]} 22. f4 {[%emt 0:03:20]} g6 {[%emt 0:01:16]} 23. Bxd6 {[%emt 0:00:44]} Kxd6 {[%emt 0:00:06]} 24. Kf3 {[%emt 0:01:42]} Rc6 {[%emt 0:06:01]} 25. Ke3 {[%emt 0:02:35]} Rb6 {[%emt 0:01:34]} 26. b4 {[%emt 0:01:53]} Rc6 {[%emt 0:00:30]} 27. Kd3 {[%emt 0:00:04]} Rgc8 {[%emt 0:00:15]} 28. Ra3 {[%emt 0:00:52]} Ke7 {[%emt 0:00:36]} 29. g5 {[%emt 0:02:15]} h6 {[%emt 0:00:37]} 30. h4 {[%emt 0:02:43]} Rh8 {[%emt 0:01:50]} 31. Re3 {[%emt 0:00:28]} hxg5 {[%emt 0:00:07]} 32. hxg5 {[%emt 0:00:01]} Rh1 {[%emt 0:00:17]} 33. Rf3 {[%emt 0:02:25]} Rc8 {[%emt 0:00:06]} 34. Ra2 {[%emt 0:01:40]} Rch8 {[%emt 0:00:09]} 35. Re2 {[%emt 0:00:43]} Kd6 {[%emt 0:02:55]} 36. Rff2 {[%emt 0:02:02]} Ra1 {[%emt 0:04:59]} 37. Rh2 {[%emt 0:03:00]} Rh1 {[%emt 0:02:05]} 38. Rxh8 {[%emt 0:00:15]} Rxh8 {[%emt 0:00:02]} 39. Re3 {[%emt 0:00:27]} Rh2 {[%emt 0:00:14]} 40. Re2 {[%emt 0:00:00]} Rh3+ {[%emt 0:00:00]} 41. Re3 {[%emt 0:03:05]} Rh4 {[%emt 0:03:01]} 42. Rf3 {[%emt 0:00:38]} Rh2 {[%emt 0:00:05]} 43. Rf1 {[%emt 0:10:28]} b6 {[%emt 0:00:20]} 44. a5 {[%emt 0:06:10]} bxa5 {[%emt 0:03:18]} 45. Ra1 {[%emt 0:01:32]} Rh3+ {[%emt 0:00:41]} 46. Kd2 {[%emt 0:03:51]} Kc6 {[%emt 0:00:08]} 47. bxa5 {[%emt 0:01:11]} Rf3 {[%emt 0:00:09]} 48. Rb1 {[%emt 0:00:21]} Rxf4 {[%emt 0:01:23]} 49. a6 {[%emt 0:00:11]} Rf2+ {[%emt 0:00:03]} 50. Kd3 {[%emt 0:00:24]} Ra2 {[%emt 0:08:59]} 51. Rb7 {[%emt 0:00:05]} Rxa6 {[%emt 0:00:04]} 52. Rxf7 {[%emt 0:00:09]} Ra2 {[%emt 0:00:04]} 53. Rf6 {[%emt 0:00:18]} Kd6 {[%emt 0:00:01]} 54. Rxg6 {[%emt 0:00:13]} a5 {[%emt 0:00:29]} 55. Rg8 {[%emt 0:01:03]} a4 {[%emt 0:00:08]} 56. g6 {[%emt 0:00:06]} Ke7 {[%emt 0:00:29]} 57. g7 {[%emt 0:00:59]} Kf7 {[%emt 0:00:09]} 58. Re8 {[%emt 0:00:04]} Rg2 {[%emt 0:00:20]} 59. Ra8 {[%emt 0:00:08]} Kxg7 {[%emt 0:00:35]} 60. Rxa4 {[%emt 0:00:05]} Kf6 {[%emt 0:00:03]} 61. Ra1 {[%emt 0:01:00]} Rg3+ {[%emt 0:00:16]} 62. Kd2 {[%emt 0:00:11]} e5 {[%emt 0:04:12]} 63. Rf1+ {[%emt 0:00:21]} Ke6 {[%emt 0:00:05]} 64. dxe5 {[%emt 0:00:05]} Kxe5 {[%emt 0:00:01]} 65. Re1+ {[%emt 0:00:12]} Kd6 {[%emt 0:00:04]} 66. Re3 {[%emt 0:00:13]} Rg2+ {[%emt 0:00:34]} 67. Re2 {[%emt 0:00:14]} Rg8 {[%emt 0:00:08]} 68. Kd3 {[%emt 0:00:18]} Kc5 {[%emt 0:00:04]} 69. Re3 {[%emt 0:00:42]} Rg1 {[%emt 0:00:05]} 70. Re2 {[%emt 0:00:43]} Rg3+ {[%emt 0:00:04]} 71. Re3 {[%emt 0:00:14]} Rxe3+ {[%emt 0:00:05]} 72. Kxe3 {[%emt 0:00:04]} Kc4 {[%emt 0:00:03]} 73. Kd2 {[%emt 0:00:03]} d4 {[%emt 0:00:03]} 74. cxd4 {[%emt 0:00:05]} Kxd4 {[%emt 0:00:02]} 1/2-1/2

[Event "55th Rubinstein Memorial-A 2019"]
[Site "Polanica-Zdroj"]
[Date "2019.08.24"]
[Round "8.14"]
[White "Oleksy, Krzysztof"]
[Black "Domanski, Lukasz"]
[Result "1-0"]
[ECO "D21"]
[WhiteElo "1840"]
[BlackElo "2058"]
[Annotator "NA"]
[PlyCount "60"]
[EventDate "2019.08.17"]
[EventType "swiss"]
[EventCountry "POL"]
[SourceTitle "playchess.com"]
[Source "ChessBase"]
[SourceQuality "1"]
[TimeControl "40/5400+30:1800+30"]

1. d4 {[%emt 0:00:00]} d5 {[%emt 0:01:42]} 2. c4 {[%emt 0:00:00]} dxc4 {[%emt 0:00:33]} 3. Nf3 {[%emt 0:00:05]} a6 {[%emt 0:00:06]} 4. e3 {[%emt 0:00:31]} Bg4 {[%emt 0:00:15]} 5. Bxc4 {[%emt 0:00:46]} e6 {[%emt 0:00:17]} 6. O-O {[%emt 0:00:46]} Nf6 {[%emt 0:00:26]} 7. Nc3 {[%emt 0:00:47]} Nc6 {[%emt 0:00:58]} 8. a3 {[%emt 0:06:40]} Bd6 {[%emt 0:02:05]} 9. b4 {[%emt 0:04:51]} O-O {[%emt 0:03:07]} 10. Bb2 {[%emt 0:00:51]} e5 {[%emt 0:03:09]} 11. dxe5 {[%emt 0:17:29]} Bxf3 {[%emt 0:05:06]} 12. Qxf3 {[%emt 0:04:04]} Nxe5 {[%emt 0:00:09]} 13. Qe2 {[%emt 0:01:26]} Nfg4 {[%emt 0:06:06]} 14. h3 {[%emt 0:09:09]} Qh4 {[%emt 0:14:10]} 15. Bb3 {[%emt 0:14:47]} Rae8 {[%emt 0:12:10]} 16. Ne4 {[%emt 0:12:59]} Nf3+ {[%emt 0:16:04]} 17. Qxf3 {[%emt 0:04:15]} Nh2 {[%emt 0:02:23]} 18. Qf5 {[%emt 0:03:06]} Rxe4 {[%emt 0:02:46]} 19. Rfd1 {[%emt 0:03:13]} Re7 {[%emt 0:14:22]} 20. Rxd6 {[%emt 0:01:41]} cxd6 {[%emt 0:00:10]} 21. Kxh2 {[%emt 0:00:56]} Rc7 {[%emt 0:03:09]} 22. Rd1 {[%emt 0:01:38]} Qe7 {[%emt 0:02:07]} 23. Bc2 {[%emt 0:04:24]} g6 {[%emt 0:00:14]} 24. Qe4 {[%emt 0:01:31]} Qxe4 {[%emt 0:01:10]} 25. Bxe4 {[%emt 0:00:04]} Rd7 {[%emt 0:01:43]} 26. Bd5 {[%emt 0:02:44]} Rc8 {[%emt 0:00:58]} 27. Rc1 {[%emt 0:01:37]} Re8 {[%emt 0:00:49]} 28. Kg3 {[%emt 0:00:20]} Kf8 {[%emt 0:01:24]} 29. Bf6 {[%emt 0:00:34]} Rb8 {[%emt 0:01:10]} 30. Kf3 {[%emt 0:01:16]} Re8 {[%emt 0:00:49] Ke4} 1-0